lending/lending_fUSD_20240207
["ID","MTS","AMOUNT","RATE_DAILY","PERIOD"]
[313399350,1707305441026,-155.43206583,0.00022999,2]
[313399351,1707305441035,-1104.25,0.00022999,2]
[313399352,1707305441045,-1520.53034839,0.00023,2]
[313399353,1707305441058,-555.21,0.00023,2]
[313399354,1707305441078,-8055.76908848,0.00023,2]
[313399355,1707305441089,-1613.42219468,0.00023,2]
[313399356,1707305441140,-400.11407784,0.00023,2]
[313399357,1707305441153,-480.57601989,0.00023,2]
[313399358,1707305441165,-381.25477221,0.00023,2]
[313399359,1707305441732,-5319.89305552,0.00023,2]
[313399383,1707305443217,-272.95489762,0.00022999,2]
[313399384,1707305443227,-71708.0232716,0.00023,2]
[313399385,1707305443239,-332.23009848,0.00023,2]
[313399386,1707305443278,-9300.82849591,0.00023,2]
[313399387,1707305443291,-519.53723051,0.00023,2]
[313399388,1707305443333,-986.06827491,0.00023,2]
[313399389,1707305443345,-10238.25215461,0.00023,2]
[313399390,1707305443392,-516.00486596,0.00023,2]
[313399391,1707305443403,-10975.39934671,0.00023,2]
[313399392,1707305443457,-810.5932,0.00023,2]
[313399393,1707305443469,-1917.37273194,0.00023,2]
[313399592,1707305446179,-694.31967917,0.00023,2]
[313399593,1707305446190,-680.22227264,0.00023,2]
[313399594,1707305446237,-1122.59869064,0.00023,2]
[313399595,1707305446248,-2435.1367757,0.00023,2]
[313399596,1707305446260,-2170.98220505,0.00023,2]
[313399597,1707305446272,-11379.99999995,0.00023,2]
[313399598,1707305446283,-344.3407224,0.00023,2]
[313399599,1707305446300,-791.65526421,0.00023,2]
[313399600,1707305446311,-674.79429573,0.00023,2]
[313399601,1707305446322,-431.885,0.00023,2]
[313399602,1707305446333,-348.77523253,0.00023,2]
[313399603,1707305446345,-1883.74141481,0.00023,2]
[313399604,1707305446415,-45508.24479854,0.00023,2]
[313399605,1707305446475,-12236.56196938,0.00023,2]
[313399606,1707305446487,-2621.92451032,0.00023,2]
[313399607,1707305446498,-1494.43474316,0.00023,2]
[313399608,1707305446510,-1619.38125785,0.00023,2]
[313399609,1707305446522,-261.133,0.00023,2]
[313399610,1707305446533,-2306.52407893,0.00023,2]
[313399612,1707305446544,-296.42944279,0.00023,2]
[313399613,1707305518461,247.42374992,0.00022768,2]
[313399614,1707305521133,361.09160467,0.0002277,2]
[313399615,1707305521155,2000.0,0.0002277,2]
[313399616,1707305521177,920.17591691,0.0002277,2]
[313399617,1707305746377,232670.559682,0.00027,30]
[313399618,1707305973945,209.0,0.0002229,2]
[313399619,1707306163561,247.32726579,0.00022768,2]
[313399620,1707306166498,155.0,0.00022768,2]
[313399621,1707306171316,468.4968173,0.00022768,2]
[313399622,1707306171338,2000.0,0.00022768,2]
[313399623,1707306171361,1255.04952518,0.00022768,2]
[313399624,1707306178424,414.32805963,0.00022768,2]
[313399625,1707306181182,281.28534164,0.00022768,2]
[313399626,1707306225918,298.92128192,0.00022768,15]
[313399627,1707306382452,49.33707355,0.00022,2]
[313399628,1707306382474,208.77292645,0.00022,2]
[313399629,1707306383733,485.14,0.00022137,2]
[313399630,1707306448447,195.96,0.00022943,10]
[313399631,1707306477208,158.69023535,0.00022766,2]
[313399632,1707306548359,-1225.47377789,0.00022792,2]
[313399633,1707306548379,-2026.38012447,0.00022793,2]
[313399634,1707306548402,-287.96862945,0.00022799,2]
[313399635,1707306548423,-966.9,0.00022847,2]
[313399636,1707306548443,-284.02379986,0.00022899,2]
[313399637,1707306548463,-150.0,0.00022899,2]
[313399638,1707306548495,-150.0,0.00022899,2]
[313399639,1707306548514,-179.09847635,0.000229,2]
[313399640,1707306548534,-194.27112981,0.000229,2]
[313399641,1707306548564,-162.83781801,0.000229,2]
[313399642,1707306548585,-1293.98814337,0.000229,2]
[313399643,1707306548605,-256.16255813,0.000229,2]
[313399644,1707306548624,-150.0,0.00022938,2]
[313399645,1707306548645,-11792.4419183,0.0002299,2]
[313399646,1707306548664,-510.13598131,0.00022997,2]
[313399647,1707306548683,-2319.02287815,0.00022997,2]
[313399648,1707306548701,-200.50299668,0.00022997,2]
[313399649,1707306548720,-701.57,0.00022997,2]
[313399650,1707306548739,-549.63,0.00022997,2]
[313399651,1707306548888,-209.54076587,0.00022998,2]
[313399652,1707306548909,-767.91719835,0.00022998,2]
[313399653,1707306548930,-345.25667309,0.00022998,2]
[313399654,1707306548949,-2144.10452078,0.00022998,2]
[313399655,1707306548969,-2536.10923711,0.00022998,2]
[313399656,1707306548989,-360.88240256,0.00022998,2]
[313399657,1707306549008,-6588.55008811,0.00022998,2]
[313399658,1707306549028,-704.28192436,0.00022998,2]
[313399659,1707306549047,-291.02911606,0.00022998,2]
[313399660,1707306549067,-219.61135889,0.00022998,2]
[313399661,1707306549089,-39116.28314197,0.00022998,2]
[313399662,1707306609397,-722.0,0.00022997,2]
[313399663,1707306609421,-2026.38012447,0.00022997,2]
[313399664,1707306609442,-1224.36753429,0.00022997,2]
[313399665,1707306619016,-35104.25234124,0.00022998,2]
[313399677,1707306632313,-1130.50365242,0.00022997,2]
[313399679,1707306632369,-893.40865156,0.00022997,2]
[313399680,1707306632379,-819.62870455,0.00022998,2]
[313399681,1707306632395,-393.45872412,0.00022998,2]
[313399682,1707306632424,-334.84098344,0.00022998,2]
[313399683,1707306632583,-265.0000001,0.00022998,2]
[313399684,1707306632606,-47028.59041844,0.00022998,2]
[313399685,1707306632616,-157.72882165,0.00022998,2]
[313399686,1707306632629,-13022.60323265,0.00022998,2]
[313399687,1707306632640,-162.13905461,0.00022998,2]
[313399688,1707306632649,-1375.05019993,0.00022998,2]
[313399689,1707306632659,-2337.80073729,0.00022998,2]
[313399690,1707306632669,-548.21142685,0.00022998,2]
[313399691,1707306632678,-162.82047582,0.00022998,2]
[313399692,1707306632687,-251.57324471,0.00022998,2]
[313399693,1707306632696,-155.30741816,0.00022998,2]
[313399694,1707306632706,-348.81942987,0.00022998,2]
[313399696,1707306632716,-943.53094508,0.00022998,2]
[313399698,1707306632727,-160.07621788,0.00022998,2]
[313399702,1707306632736,-478.21893344,0.00022998,2]
[313399705,1707306632746,-1162.63,0.00022999,2]
[313399707,1707306632755,-904.63358774,0.00022999,2]
[313399709,1707306632767,-1759.09259126,0.00022999,2]
[313399711,1707306632777,-2.36821272,0.00023,2]
[313399713,1707306632788,-3085.92608726,0.00023,2]
[313399715,1707306632800,-472.38437692,0.00023,2]
[313399718,1707306632815,-541.24591888,0.00023,2]
[313399720,1707306632827,-12030.56284381,0.00023,2]
[313399722,1707306632838,-397.08340281,0.00023,2]
[313399725,1707306632854,-3060.50973781,0.00023,2]
[313399981,1707306641026,-695.859457,0.00022997,2]
[313399988,1707306641085,-51.1068787,0.00022997,2]
[313399991,1707306641095,-294.79739751,0.00022998,2]
[313399993,1707306641107,-4969.38828042,0.00022998,2]
[313399995,1707306641119,-280.10695403,0.00022998,2]
[313399997,1707306641132,-3597.38063253,0.00022998,2]
[313400000,1707306641144,-1280.48439998,0.00022998,2]
[313400002,1707306641155,-638.055,0.00022998,2]
[313400088,1707306641961,-16509.42998716,0.00022998,2]
[313400090,1707306641971,-121940.23425219,0.00023,2]
[313400092,1707306641983,-1231.22118324,0.00023,2]
[313400175,1707306643369,-264.87429206,0.00023,2]
[313400176,1707306643481,-723.50238996,0.00023,2]
[313400177,1707306643493,-409.79455518,0.00023,2]
[313400178,1707306643508,-1118.59574538,0.00023,2]
[313400179,1707306643519,-1367.80188262,0.00023,2]
[313400180,1707306643540,-541.88479081,0.00023,2]
[313400181,1707306643652,-7692.79107639,0.00023,2]
[313400188,1707306646397,-736.19737716,0.00023,2]
[313400189,1707306646410,-13124.15413492,0.00023,2]
[313400190,1707306646425,-856.96212621,0.00023,2]
[313400191,1707306646507,-14076.65178522,0.00023,2]
[313400192,1707306646519,-990.7898335,0.00023,2]
[313400193,1707306646569,-702.78527506,0.00023,2]
[313400194,1707306646683,-117477.24242858,0.00023,2]
[313400196,1707306646692,-286731.34502138,0.00023,2]
[313400197,1707306646708,-846.27509641,0.00023,2]
[313400198,1707306646719,-609.83322762,0.00023,2]
[313400201,1707306718046,150.0,0.00022692,2]
[313400202,1707306718949,150.0,0.00022609,2]
[313400203,1707306721312,165.1862054,0.000222,2]
[313400204,1707306727446,682.2106328,0.00020698,2]
[313400205,1707306727468,324.22827617,0.00020698,2]
[313400206,1707306745438,675.84162778,0.00020698,2]
[313400207,1707306754276,165.1862054,0.000222,2]
[313400208,1707306774271,165.1862054,0.000222,2]
[313400209,1707306794276,172.59004986,0.000222,2]
[313400210,1707306794401,157.40162254,0.00020698,2]
[313400211,1707306812397,157.40162254,0.00020698,2]
[313400212,1707306812549,635.79805297,0.00022998,5]
[313400213,1707306828441,227.02127934,0.00020698,2]
[313400217,1707306848247,5332.48,0.0002,2]
[313400222,1707306992747,258.11,0.00022,2]
[313400223,1707306994000,258.11,0.00022137,2]
[313400224,1707306995730,258.11,0.00022274,2]
[313400225,1707307121057,150.0,0.0002705,120]
[313400226,1707307284197,590.82,0.00020605,2]
[313400227,1707307351506,2000.0,0.00022472,2]
[313400228,1707307413705,209.0,0.0002248,2]
[313400229,1707307468026,184.6283555,0.00022585,2]
[313400230,1707307508440,200.0,0.00022412,2]
[313400231,1707307532188,1101.01,0.00022488,2]
[313400232,1707307589282,218.62,0.0002244,2]
[313400233,1707307601156,209.92,0.0002244,2]
[313400234,1707307608748,198.09,0.00022467,2]
[313400235,1707307611366,2155.69,0.00022467,2]
[313400236,1707307618641,500.0,0.00022518,2]
[313400237,1707307687470,200.0,0.00022514,2]
[313400238,1707307724321,2576.01,0.00022514,2]
[313400239,1707307783387,184.62835549,0.00022574,2]
[313400247,1707307831557,-359.03835404,0.00022671,2]
[313400248,1707307831612,-134.98256237,0.00022671,2]
[313400249,1707307831621,-1181.59265332,0.00022672,2]
[313400250,1707307831632,-796.62532558,0.00022672,2]
[313400251,1707307831666,-48.16214557,0.00022672,2]
[313400252,1707307831675,-411.07476773,0.00022779,2]
[313400253,1707307831688,-150.19523227,0.00022779,2]
[313400254,1707307831697,-161.86545094,0.00022795,2]
[313400255,1707307831708,-197.67974772,0.00022795,2]
[313400256,1707307831718,-184.11875521,0.00022897,2]
[313400257,1707307831730,-115.88124479,0.00022897,2]
[313400258,1707307831739,-300.0,0.00022899,2]
[313400259,1707307831748,-150.0,0.00022899,2]
[313400260,1707307831760,-722.56,0.000229,2]
[313400261,1707307831769,-8203.3966,0.000229,2]
[313400262,1707307831781,-204.93004648,0.000229,2]
[313400263,1707307831790,-1181.95283279,0.000229,2]
[313400264,1707307831800,-22975.56175955,0.000229,2]
[313400265,1707307831811,-7354.72394105,0.000229,2]
[313400266,1707307831823,-4657.8,0.000229,2]
[313400267,1707307831836,-47903.48112199,0.000229,2]
[313400269,1707307831847,-4408.13691318,0.000229,2]
[313400271,1707307831865,-438.73888158,0.000229,2]
[313400272,1707307831876,-3320.74165696,0.000229,2]
[313400273,1707307831887,-1448.7530309,0.000229,2]
[313400277,1707307837517,-2980.50177906,0.000229,2]
[313400278,1707307837572,-1769.61381994,0.000229,2]
[313400279,1707307837583,-263.85947574,0.000229,2]
[313400280,1707307837629,-1140.16934423,0.000229,2]
[313400281,1707307837641,-958.60361974,0.000229,2]
[313400282,1707307837655,-446.04655466,0.000229,2]
[313400283,1707307837684,-17225.86990212,0.000229,2]
[313400284,1707307837742,-729.20431587,0.000229,2]
[313400285,1707307837892,-741.27723955,0.000229,2]
[313400286,1707307837906,-420.8888349,0.000229,2]
[313400287,1707307837917,-313.89851893,0.000229,2]
[313400304,1707307838177,-0.56864737,0.000229,2]
[313400305,1707307838238,-44693.13664947,0.000229,2]
[313400306,1707307838250,-190740.51719321,0.000229,2]
[313400307,1707307838259,-1737.80951947,0.000229,2]
[313400308,1707307838268,-181.30485837,0.000229,4]
[313400309,1707307838277,-712.6,0.00022995,2]
[313400310,1707307838286,-709.81,0.00022995,2]
[313400311,1707307838295,-499.99,0.00022995,2]
[313400312,1707307838305,-321.75369153,0.00022998,2]
[313400313,1707307838314,-2630.3674757,0.00022998,2]
[313400314,1707307838323,-500.0,0.00022998,2]
[313400315,1707307838333,-19076.53440066,0.00022998,2]
[313400316,1707307838342,-155.0,0.00022998,2]
[313400317,1707307838351,-1316.08392254,0.00022999,2]
[313400318,1707307838361,-1654.66467713,0.00022999,2]
[313400319,1707307838370,-2592.73,0.00022999,2]
[313400320,1707307838380,-76178.59695578,0.00023,2]
[313400321,1707307838392,-23375.5214971,0.00023,2]
[313400322,1707307838404,-1103.353829,0.00023,2]
[313400336,1707307840128,-2562.59304067,0.00023,2]
[313400337,1707307840782,-109605.74363909,0.00023,2]
[313400338,1707307840793,-753.6799968,0.00023,2]
[313400339,1707307840837,-3726.61482041,0.00023,2]
[313400340,1707307840893,-8542.23696997,0.00023,2]
[313400341,1707307840905,-118537.60830282,0.00023,2]
[313400342,1707307840917,-8883.99999996,0.00023,2]
[313400343,1707307840928,-44214.03643245,0.00023,2]
[313400344,1707307840939,-1728.49631291,0.00023,2]
[313400345,1707307840953,-640.041,0.00023,2]
[313400346,1707307841020,-3323.20790079,0.00023,2]
[313400370,1707307842566,-2395.67871708,0.000229,2]
[313400371,1707307842575,-1475.68795186,0.00023,2]
[313400372,1707307842730,-8105.9759816,0.00023,2]
[313400373,1707307842782,-646.10985584,0.00023,2]
[313400374,1707307842796,-764.69736901,0.00023,2]
[313400375,1707307842839,-976.61658041,0.00023,2]
[313400378,1707307845609,-1461.814397,0.00022899,2]
[313400379,1707307845665,-562.92051381,0.00022899,2]
[313400380,1707307845675,-12433.18774145,0.00023,2]
[313400381,1707307845723,-1238.07960365,0.00023,2]
[313400382,1707307845735,-363.2260367,0.00023,2]
[313400383,1707307845779,-529.23044145,0.00023,2]
[313400384,1707307845839,-942.75932882,0.00023,2]
[313400385,1707307845894,-1670.30975742,0.00023,2]
[313400386,1707307845906,-2105.08083824,0.00023,2]
[313400393,1707307932947,294.4245,0.00022572,2]
[313400394,1707308348472,533.2,0.00020708,2]
[313400395,1707308483427,167.94,0.00022421,2]
[313400396,1707308530617,1368.01,0.000226,2]
[313400397,1707308551703,19507.43,0.00022421,2]
[313400398,1707308554958,500.0,0.00022421,2]
[313400399,1707308590269,200.0,0.00022241,2]
[313400400,1707308590772,200.0,0.00022242,2]
[313400401,1707308633907,200.0,0.00022421,2]
[313400402,1707308639248,917.5,0.00022421,2]
[313400403,1707308673412,150.46682247,0.00023,5]
[313400404,1707308740909,2623.6,0.00022179,2]
[313400405,1707308854312,204.0,0.00021891,2]
[313400406,1707308923157,300.0,0.000229,8]
[313400407,1707308963002,506.54,0.00020382,2]
[313400408,1707309021064,865.64,0.00022114,2]
[313400421,1707309031723,-497.39779607,0.00022644,2]
[313400422,1707309031736,-155.0,0.00022645,2]
[313400423,1707309031746,-506.54,0.00022646,2]
[313400424,1707309031756,-150.0,0.00022735,2]
[313400425,1707309031765,-17.96792731,0.00022768,2]
[313400426,1707309031777,-137.03207269,0.00022768,2]
[313400427,1707309031786,-150.0,0.00022799,2]
[313400428,1707309031795,-150.0,0.00022848,2]
[313400429,1707309031804,-150.0,0.00022863,2]
[313400430,1707309031812,-620.62,0.00022863,2]
[313400431,1707309031821,-179.31,0.00022865,2]
[313400432,1707309031831,-150.0,0.0002289,2]
[313400433,1707309031840,-150.0,0.00022898,2]
[313400434,1707309031849,-150.0,0.00022898,2]
[313400435,1707309031858,-150.0,0.00022898,2]
[313400436,1707309031867,-300.0033,0.00022899,2]
[313400437,1707309031876,-10361.64529751,0.00022899,2]
[313400438,1707309031885,-24262.92692984,0.000229,2]
[313400439,1707309031899,-384.3878097,0.000229,2]
[313400440,1707309031918,-1711.99249184,0.000229,2]
[313400441,1707309031933,-1038.75,0.000229,2]
[313400442,1707309031955,-535.37065222,0.000229,2]
[313400455,1707309037683,-155.0,0.00022643,2]
[313400457,1707309037693,-2243.6195164,0.000229,2]
[313400458,1707309037702,-7526.78065371,0.000229,2]
[313400459,1707309037714,-31.15144629,0.000229,2]
[313400460,1707309037723,-163.9440372,0.000229,2]
[313400461,1707309037733,-194.27112981,0.000229,2]
[313400462,1707309037741,-1109.25643972,0.000229,2]
[313400463,1707309037750,-999.99,0.000229,2]
[313400464,1707309037759,-179.31,0.00022927,2]
[313400465,1707309037769,-179.31,0.0002299,2]
[313400466,1707309037778,-555.28243778,0.00022998,2]
[313400467,1707309037787,-178.49045559,0.00022998,2]
[313400468,1707309037797,-896.05770181,0.00022998,2]
[313400469,1707309037806,-2062.131362,0.00022998,2]
[313400470,1707309037815,-2194.40507209,0.00022999,2]
[313400471,1707309037824,-2163.75089799,0.00022999,2]
[313400472,1707309037833,-10453.85513038,0.00023,2]
[313400473,1707309037845,-25556.10247485,0.00023,2]
[313400474,1707309037856,-988.1124804,0.00023,2]
[313400475,1707309037867,-635.27416359,0.00023,2]
[313400476,1707309037878,-2502.59387264,0.00023,2]
[313400477,1707309037889,-313.27,0.00023,2]
[313400478,1707309037901,-2103.3787534,0.00023,2]
[313400479,1707309037912,-1704.77468899,0.00023,2]
[313400480,1707309037923,-6797.42464025,0.00023,2]
[313400481,1707309037934,-257.17482397,0.00023,2]
[313400482,1707309037950,-692.27734987,0.00023,2]
[313400483,1707309037965,-261.99836,0.00023,2]
[313400484,1707309037976,-956.2938337,0.00023,2]
[313400485,1707309037989,-1066.77153618,0.00023,2]
[313400486,1707309038000,-1545.65765253,0.00023,2]
[313400487,1707309038011,-1474.11288083,0.00023,2]
[313400488,1707309038022,-979.31412629,0.00023,2]
[313400489,1707309038039,-1270.41460312,0.00023,2]
[313400490,1707309038051,-1931.57402716,0.00023,2]
[313400491,1707309038067,-323.17875603,0.00023,2]
[313400492,1707309038078,-1506.543848,0.00023,2]
[313400493,1707309038105,-14426.89781534,0.00023,2]
[313400495,1707309038116,-1892.5568582,0.00023,2]
[313400496,1707309038134,-638.89389986,0.00023,2]
[313400511,1707309040266,-500.0,0.00023,2]
[313400512,1707309040279,-2671.99622207,0.00023,2]
[313400513,1707309040290,-5337.77925,0.00023,2]
[313400514,1707309040325,-424.82213099,0.00023,2]
[313400515,1707309040336,-1548.09643358,0.00023,2]
[313400516,1707309040347,-355.32,0.00023,2]
[313400517,1707309040358,-37876.98660379,0.00023,2]
[313400518,1707309040369,-3103.72225,0.00023,2]
[313400519,1707309040385,-3160.59475388,0.00023,2]
[313400520,1707309040397,-3986.2815106,0.00023,2]
[313400521,1707309040408,-11807.21129886,0.00023,2]
[313400522,1707309040417,-716.21,0.00023,2]
[313400523,1707309040427,-392.26555625,0.00023,2]
[313400524,1707309040438,-8203.07929436,0.00023,2]
[313400525,1707309040449,-16913.3,0.00023,2]
[313400526,1707309040477,-451.58792143,0.00023,2]
[313400527,1707309040504,-498.1733841,0.00023,2]
[313400528,1707309040516,-1811.63303534,0.00023,2]
[313400529,1707309041162,-170492.21873261,0.00023,2]
[313400530,1707309041174,-403.47012699,0.00023,2]
[313400531,1707309041186,-531.06,0.00023,2]
[313400532,1707309041199,-443.0070299,0.00023,2]
[313400533,1707309041211,-501.7001713,0.00023,2]
[313400534,1707309041230,-108849.25105292,0.00023,2]
[313400535,1707309041243,-2260.5,0.00023,2]
[313400538,1707309042722,-8894.03345698,0.00023,2]
[313400539,1707309042735,-4861.32470198,0.00023,2]
[313400540,1707309042780,-2459.53667299,0.00023,2]
[313400541,1707309042791,-532.31750915,0.00023,2]
[313400542,1707309042839,-103546.75804378,0.00023,2]
[313400543,1707309042850,-883.1158126,0.00023,2]
[313400544,1707309042956,-1029.67555499,0.00023,2]
[313400545,1707309042970,-1037.57518931,0.00023,2]
[313400546,1707309042981,-264.1135013,0.00023,2]
[313400547,1707309043023,-1731.3505277,0.00023,2]
[313400560,1707309045745,-2347.46759022,0.00023,2]
[313400570,1707309045857,-611.705515,0.00023,2]
[313400571,1707309045914,-40872.94065676,0.00023,2]
[313400572,1707309045973,-853.1606991,0.00023,2]
[313400576,1707309063739,206.0,0.00021891,2]
[313400577,1707309122077,202.34,0.00022298,2]
[313400578,1707309191692,200.0,0.00022119,2]
[313400579,1707309192051,200.0,0.0002212,2]
[313400580,1707309195791,800.0,0.00022119,2]
[313400581,1707309196145,800.0,0.0002212,2]
[313400582,1707309196477,800.0,0.0002212,2]
[313400583,1707309200087,200.0,0.0002212,2]
[313400584,1707309301284,405.10425242,0.00022547,2]
[313400585,1707309302818,152.41,0.00022226,2]
[313400586,1707309303039,152.41,0.00022287,2]
[313400587,1707309303264,152.41,0.00022348,2]
[313400588,1707309303488,152.41,0.00022409,2]
[313400589,1707309303704,152.41,0.0002247,2]
[313400590,1707309304050,152.41,0.00022531,2]
[313400591,1707309304171,152.41,0.00022592,2]
[313400592,1707309329757,764.58,0.00021912,2]
[313400594,1707309464446,455.88,0.00019953,2]
[313400595,1707309464755,455.88,0.00022217,2]
[313400596,1707309471173,307.48,0.00021871,2]
[313400597,1707309654334,-494.02091641,0.00022622,2]
[313400598,1707309654357,-1505.97908359,0.00022623,2]
[313400599,1707309654840,-2000.0,0.00022623,2]
[313400600,1707309655334,-1139.47841279,0.00022623,2]
[313400601,1707309659122,860.52158721,0.00022621,2]
[313400602,1707309659144,185.51503306,0.00022621,2]
[313400603,1707309791255,200.0,0.0002244,2]
[313400604,1707309847639,152.41,0.00022112,2]
[313400605,1707309847845,152.41,0.00022208,2]
[313400606,1707309848227,152.41,0.00022304,2]
[313400607,1707309848622,152.41,0.000224,2]
[313400608,1707309848832,152.41,0.00022496,2]
[313400609,1707309849213,152.41,0.00022592,2]
[313400610,1707309872687,700.02496694,0.00021895,2]
[313400611,1707309872709,245.47503306,0.00021895,2]
[313400612,1707309902160,754.01,0.00021899,2]
[313400613,1707309924212,410.29,0.00019981,2]
[313400614,1707309924753,410.29,0.00022245,2]
[313400615,1707309933800,179.93496694,0.00022355,2]
[313400616,1707309933822,24.06503306,0.00022355,2]
[313400622,1707310231882,-384.84903997,0.00022634,2]
[313400623,1707310231891,-716.33221254,0.00022641,2]
[313400625,1707310231996,-350.0,0.00022641,2]
[313400626,1707310232008,-318.04948746,0.00022641,2]
[313400627,1707310232017,-845.89935164,0.00022647,2]
[313400628,1707310232026,-152.41,0.00022688,2]
[313400629,1707310232034,-150.0,0.00022707,2]
[313400630,1707310232044,-300.0,0.0002274,2]
[313400631,1707310232053,-11065.20385849,0.0002274,2]
[313400632,1707310232062,-150.0,0.00022744,2]
[313400633,1707310232071,-198.19783749,0.00022754,2]
[313400634,1707310232081,-150.0,0.00022765,2]
[313400635,1707310232092,-2277.55,0.00022765,2]
[313400636,1707310232101,-2751.77,0.00022784,2]
[313400637,1707310232112,-152.41,0.00022784,2]
[313400638,1707310232123,-150.0,0.00022795,2]
[313400639,1707310232132,-150.0,0.00022804,2]
[313400640,1707310232142,-150.0,0.00022806,2]
[313400641,1707310232152,-150.0,0.00022806,2]
[313400642,1707310232163,-150.0,0.00022809,2]
[313400643,1707310232172,-1566.5416943,0.0002281,2]
[313400644,1707310232181,-1536.22298074,0.00022831,2]
[313400645,1707310232191,-150.0,0.00022848,2]
[313400646,1707310232200,-150.0,0.00022848,2]
[313400647,1707310232209,-150.0,0.00022849,2]
[313400648,1707310232218,-152.41,0.0002288,2]
[313400649,1707310232227,-500.0,0.00022885,2]
[313400650,1707310232236,-454.1968,0.00022885,2]
[313400651,1707310232245,-409.89550879,0.00022896,2]
[313400652,1707310232255,-275.5027,0.00022897,2]
[313400653,1707310232264,-16470.63265121,0.00022897,2]
[313400654,1707310232276,-1754.78592982,0.00022897,2]
[313400660,1707310237977,-13185.51840333,0.00022897,2]
[313400661,1707310237989,-235.19111564,0.00022897,2]
[313400662,1707310237998,-252.1938,0.00022897,2]
[313400663,1707310238007,-528.30601658,0.00022898,2]
[313400664,1707310238018,-471.69398342,0.00022898,2]
[313400665,1707310238027,-162.53610132,0.000229,2]
[313400666,1707310238036,-150.0,0.00022905,2]
[313400667,1707310238045,-1500.0,0.00022906,2]
[313400668,1707310238054,-150.0,0.00022914,2]
[313400669,1707310238064,-150.0,0.00022914,2]
[313400670,1707310238073,-152.15491724,0.00022922,2]
[313400671,1707310238082,-150.0,0.00022935,2]
[313400672,1707310238092,-150.0,0.0002294,2]
[313400673,1707310238101,-150.0,0.00022949,2]
[313400674,1707310238113,-150.0,0.00022958,2]
[313400675,1707310238123,-800.0,0.00022959,2]
[313400676,1707310238132,-400.0,0.00022959,2]
[313400677,1707310238141,-150.0,0.0002296,2]
[313400678,1707310238150,-152.41,0.00022976,2]
[313400679,1707310238160,-1320.38571234,0.00022994,3]
[313400680,1707310238169,-378.85541012,0.00022994,2]
[313400681,1707310238178,-4641.64610574,0.00022994,2]
[313400682,1707310238187,-540.75566858,0.00022994,2]
[313400683,1707310238196,-1634.54335949,0.00022994,2]
[313400684,1707310238208,-4365.45664051,0.00022994,2]
[313400685,1707310238218,-1320.62854174,0.00022995,2]
[313400686,1707310238243,-54.44209548,0.00022995,2]
[313400687,1707310238252,-5905.16922564,0.00022996,2]
[313400688,1707310238264,-1017.66627,0.00022996,2]
[313400689,1707310238276,-2013.15,0.00022996,2]
[313400690,1707310238287,-27424.43148594,0.00022996,2]
[313400691,1707310238297,-155.0,0.00022997,2]
[313400692,1707310238306,-1070.84032724,0.00022997,2]
[313400693,1707310238316,-244.86156988,0.00022997,2]
[313400694,1707310238326,-1076.94943984,0.00022997,2]
[313400695,1707310238336,-4634.84004218,0.00022997,2]
[313400696,1707310238345,-500.0,0.00022997,2]
[313400697,1707310238355,-24804.5868729,0.00022997,2]
[313400698,1707310238374,-813.04,0.00022997,2]
[313400699,1707310238386,-499.41906507,0.00022997,2]
[313400707,1707310240579,-644.77640894,0.00022997,2]
[313400708,1707310240590,-307.46014093,0.00022997,2]
[313400709,1707310240638,-1382.16832226,0.00022997,2]
[313400710,1707310240650,-2080.70274421,0.00022997,2]
[313400711,1707310240662,-618.6167141,0.00022997,2]
[313400712,1707310241366,-18616.47347782,0.00022997,2]